fUSD/lending_fUSD_20240611
["ID","MTS","AMOUNT","RATE_DAILY","PERIOD"]
[329111276,1718112645382,-500.0,0.00024657,2]
[329111278,1718112645393,-680.53,0.00024657,2]
[329111280,1718112645404,-500.0,0.00024657,2]
[329111282,1718112645414,-500.0,0.00024657,2]
[329111284,1718112645425,-557.76,0.00024657,2]
[329111286,1718112645436,-500.0,0.00024657,2]
[329111288,1718112645447,-500.0,0.00024657,2]
[329111290,1718112645461,-500.0,0.00024657,2]
[329111292,1718112645472,-500.0,0.00024657,2]
[329111294,1718112645484,-560.66,0.00024657,2]
[329111296,1718112645494,-500.0,0.00024657,2]
[329111299,1718112645506,-856.96,0.00024657,2]
[329111300,1718112645516,-500.0,0.00024657,2]
[329111302,1718112645527,-556.77987144,0.00024657,2]
[329111303,1718112645538,-500.0,0.00024657,2]
[329111304,1718112645549,-500.0,0.00024657,2]
[329111305,1718112645559,-531.70633419,0.00024657,2]
[329111306,1718112645569,-500.0,0.00024657,2]
[329111307,1718112645580,-500.0,0.00024657,2]
[329111308,1718112645591,-500.0,0.00024657,2]
[329111309,1718112645602,-873.84,0.00024657,2]
[329111311,1718112645612,-500.0,0.00024657,2]
[329111313,1718112645635,-654.98,0.00024657,2]
[329111315,1718112645647,-500.0,0.00024657,2]
[329111317,1718112645657,-500.0,0.00024657,2]
[329111319,1718112645668,-500.0,0.00024657,2]
[329111321,1718112645679,-501.13,0.00024657,2]
[329111323,1718112645690,-500.0,0.00024657,2]
[329111325,1718112645701,-579.85,0.00024657,2]
[329111328,1718112645714,-500.0,0.00024657,2]
[329111330,1718112645725,-500.0,0.00024657,2]
[329111332,1718112645736,-500.0,0.00024657,2]
[329111334,1718112645746,-500.0,0.00024657,2]
[329111336,1718112645757,-500.0,0.00024657,2]
[329111338,1718112645769,-500.0,0.00024657,2]
[329111339,1718112645780,-613.7,0.00024657,2]
[329111340,1718112645790,-648.36283447,0.00024657,2]
[329111341,1718112645801,-500.0,0.00024657,2]
[329111342,1718112645812,-500.0,0.00024657,2]
[329111343,1718112645822,-500.0,0.00024657,2]
[329111344,1718112645833,-500.0,0.00024657,2]
[329111345,1718112645842,-500.0,0.00024657,2]
[329111346,1718112645853,-500.0,0.00024657,2]
[329111347,1718112645863,-500.0,0.00024657,2]
[329111348,1718112645874,-304.41215653,0.00024657,2]
[329111349,1718112645887,-624.76,0.00024657,2]
[329111350,1718112645898,-500.0,0.00024657,2]
[329111351,1718112645909,-382.77767337,0.00024657,2]
[329111352,1718112645920,-490.28970637,0.00024657,2]
[329111353,1718112645931,-500.0,0.00024657,2]
[329111354,1718112645941,-500.0,0.00024657,2]
[329111355,1718112645952,-500.0,0.00024657,2]
[329111356,1718112645967,-510.15672742,0.00024657,2]
[329111357,1718112645978,-500.0,0.00024657,2]
[329111358,1718112645988,-500.0,0.00024657,2]
[329111359,1718112645999,-712.44,0.00024657,2]
[329111360,1718112646010,-500.0,0.00024657,2]
[329111361,1718112646020,-500.0,0.00024657,2]
[329111362,1718112646031,-500.0,0.00024657,2]
[329111363,1718112646042,-500.0,0.00024657,2]
[329111364,1718112646052,-500.0,0.00024657,2]
[329111365,1718112646063,-500.0,0.00024657,2]
[329111366,1718112646074,-500.0,0.00024657,2]
[329111367,1718112646084,-524.17,0.00024657,2]
[329111368,1718112646094,-500.0,0.00024657,2]
[329111369,1718112646104,-500.0,0.00024657,2]
[329111370,1718112646114,-500.0,0.00024657,2]
[329111371,1718112646124,-500.0,0.00024657,2]
[329111372,1718112646135,-500.0,0.00024657,2]
[329111373,1718112646145,-682.89,0.00024657,2]
[329111374,1718112646155,-709.46,0.00024657,2]
[329111375,1718112646164,-500.0,0.00024657,2]
[329111377,1718112646174,-500.0,0.00024657,2]
[329111379,1718112646185,-500.0,0.00024657,2]
[329111382,1718112646195,-519.19,0.00024657,2]
[329111384,1718112646208,-500.0,0.00024657,2]
[329111386,1718112646218,-500.0,0.00024657,2]
[329111388,1718112646228,-500.0,0.00024657,2]
[329111390,1718112646238,-505.23599658,0.00024657,2]
[329111392,1718112646248,-614.18,0.00024657,2]
[329111394,1718112646259,-500.0,0.00024657,2]
[329111396,1718112646273,-517.40517724,0.00024657,2]
[329111398,1718112646283,-500.0,0.00024657,2]
[329111400,1718112646293,-507.64,0.00024657,2]
[329111402,1718112646304,-500.0,0.00024657,2]
[329111404,1718112646316,-500.0,0.00024657,2]
[329111406,1718112646327,-500.0,0.00024657,2]
[329111408,1718112646338,-936.77,0.00024657,2]
[329111410,1718112646351,-500.0,0.00024657,2]
[329111412,1718112646362,-500.0,0.00024657,2]
[329111414,1718112646373,-617.73,0.00024657,2]
[329111416,1718112646383,-500.0,0.00024657,2]
[329111419,1718112646394,-500.0,0.00024657,2]
[329111421,1718112646405,-500.0,0.00024657,2]
[329111423,1718112646415,-500.0,0.00024657,2]
[329111425,1718112646426,-500.0,0.00024657,2]
[329111427,1718112646436,-500.0,0.00024657,2]
[329111428,1718112646447,-500.0,0.00024657,2]
[329111431,1718112646462,-692.91,0.00024657,2]
[329111432,1718112646472,-569.47674068,0.00024657,2]
[329111434,1718112646487,-500.0,0.00024657,2]
[329111436,1718112646497,-528.2190403,0.00024657,2]
[329111438,1718112646507,-500.0,0.00024657,2]
[329111441,1718112646516,-170.08416638,0.00024657,2]
[329111442,1718112646526,-532.59,0.00024657,2]
[329111445,1718112646537,-500.0,0.00024657,2]
[329111446,1718112646547,-500.0,0.00024657,2]
[329111448,1718112646557,-500.0,0.00024657,2]
[329111450,1718112646568,-500.0,0.00024657,2]
[329111453,1718112646579,-151.0,0.00024657,7]
[329111455,1718112646589,-500.0,0.00024657,2]
[329111457,1718112646599,-500.0,0.00024657,2]
[329111459,1718112646609,-500.0,0.00024657,2]
[329111461,1718112646633,-615.97,0.00024657,2]
[329111463,1718112646644,-500.0,0.00024657,2]
[329111465,1718112646655,-548.32,0.00024657,2]
[329111467,1718112646665,-682.91,0.00024657,2]
[329111469,1718112646675,-500.0,0.00024657,2]
[329111471,1718112646686,-500.0,0.00024657,2]
[329111473,1718112646697,-500.0,0.00024657,2]
[329111475,1718112646710,-500.0,0.00024657,2]
[329111477,1718112646720,-500.0,0.00024657,2]
[329111479,1718112646731,-546.45872801,0.00024657,2]
[329111481,1718112646741,-500.0,0.00024657,2]
[329111483,1718112646753,-500.0,0.00024657,2]
[329111485,1718112646763,-500.0,0.00024657,2]
[329111487,1718112646774,-515.5704518,0.00024657,2]
[329111489,1718112646785,-500.0,0.00024657,2]
[329111491,1718112646796,-500.0,0.00024657,2]
[329111493,1718112646807,-549.16877902,0.00024657,2]
[329111495,1718112646818,-803.14,0.00024657,2]
[329111497,1718112646828,-500.0,0.00024657,2]
[329111499,1718112646839,-500.0,0.00024657,2]
[329111501,1718112646851,-586.98488031,0.00024657,2]
[329111503,1718112646861,-500.0,0.00024657,2]
[329111505,1718112646871,-880.09,0.00024657,2]
[329111507,1718112646882,-508.56279995,0.00024657,2]
[329111509,1718112646892,-500.0,0.00024657,2]
[329111511,1718112646903,-500.0,0.00024657,2]
[329111513,1718112646914,-568.44033908,0.00024657,2]
[329111515,1718112646925,-500.0,0.00024657,2]
[329111517,1718112646937,-500.0,0.00024657,2]
[329111520,1718112646949,-500.0,0.00024657,2]
[329111522,1718112646962,-555.1,0.00024657,2]
[329111524,1718112646971,-500.0,0.00024657,2]
[329111526,1718112646983,-500.0,0.00024657,2]
[329111528,1718112646994,-555.2013876,0.00024657,2]
[329111530,1718112647004,-500.0,0.00024657,2]
[329111532,1718112647015,-500.0,0.00024657,2]
[329111534,1718112647025,-500.0,0.00024657,2]
[329111536,1718112647036,-683.1,0.00024657,2]
[329111538,1718112647047,-500.0,0.00024657,2]
[329111540,1718112647057,-1028.77,0.00024657,2]
[329111542,1718112647067,-500.0,0.00024657,2]
[329111544,1718112647078,-500.0,0.00024657,2]
[329111546,1718112647089,-500.0,0.00024657,2]
[329111548,1718112647099,-520.59871844,0.00024657,2]
[329111550,1718112647109,-536.58,0.00024657,2]
[329111552,1718112647120,-500.0,0.00024657,2]
[329111554,1718112647130,-513.87047025,0.00024657,2]
[329111556,1718112647140,-500.0,0.00024657,2]
[329111558,1718112647151,-500.0,0.00024657,2]
[329111560,1718112647162,-500.0,0.00024657,2]
[329111563,1718112647172,-878.19,0.00024657,2]
[329111565,1718112647183,-500.0,0.00024657,2]
[329111567,1718112647193,-500.0,0.00024657,2]
[329111569,1718112647203,-665.09,0.00024657,2]
[329111571,1718112647215,-630.48,0.00024657,2]
[329111573,1718112647226,-571.6,0.00024657,2]
[329111575,1718112647236,-500.0,0.00024657,2]
[329111577,1718112647246,-500.0,0.00024657,2]
[329111579,1718112647257,-1859.4,0.00024657,2]
[329111581,1718112647272,-500.0,0.00024657,2]
[329111583,1718112647282,-553.09775517,0.00024657,2]
[329111585,1718112647292,-500.0,0.00024657,2]
[329111587,1718112647303,-500.0,0.00024657,2]
[329111589,1718112647313,-534.12786812,0.00024657,2]
[329111591,1718112647323,-500.0,0.00024657,2]
[329111593,1718112647333,-688.2,0.00024657,2]
[329111596,1718112647346,-500.0,0.00024657,2]
[329111598,1718112647356,-500.0,0.00024657,2]
[329111600,1718112647366,-520.72672155,0.00024657,2]
[329111602,1718112647376,-500.0,0.00024657,2]
[329111604,1718112647386,-525.58605271,0.00024657,2]
[329111606,1718112647396,-500.0,0.00024657,2]
[329111608,1718112647407,-500.0,0.00024657,2]
[329111610,1718112647418,-1056.93,0.00024657,2]
[329111612,1718112647428,-500.0,0.00024657,2]
[329111614,1718112647438,-923.45,0.00024657,2]
[329111616,1718112647450,-502.90622216,0.00024657,2]
[329111618,1718112647464,-500.0,0.00024657,2]
[329111619,1718112647475,-732.58,0.00024657,2]
[329111620,1718112647486,-500.0,0.00024657,2]
[329111621,1718112647496,-500.0,0.00024657,2]
[329111622,1718112647507,-500.0,0.00024657,2]
[329111623,1718112647518,-621.38,0.00024657,2]
[329111624,1718112647530,-2259.84,0.00024657,2]
[329111625,1718112647543,-312.7091727,0.00024657,2]
[329111626,1718112647555,-500.0,0.00024657,2]
[329111628,1718112647567,-500.0,0.00024657,2]
[329111630,1718112647578,-538.3164473,0.00024657,2]
[329111632,1718112647590,-860.97,0.00024657,2]
[329111634,1718112647602,-500.0,0.00024657,2]
[329111636,1718112647613,-500.0,0.00024657,2]
[329111638,1718112647640,-500.0,0.00024657,2]
[329111640,1718112647652,-500.0,0.00024657,2]
[329111641,1718112647664,-500.0,0.00024657,2]
[329111643,1718112647675,-500.0,0.00024657,2]
[329111646,1718112647686,-500.0,0.00024657,2]
[329111647,1718112647696,-500.0,0.00024657,2]
[329111649,1718112647708,-500.0,0.00024657,2]
[329111652,1718112647720,-500.0,0.00024657,2]
[329111654,1718112647731,-264.74397963,0.00024657,2]
[329111656,1718112647742,-558.59,0.00024657,2]
[329111658,1718112647752,-500.0,0.00024657,2]
[329111660,1718112647762,-500.0,0.00024657,2]
[329111662,1718112647772,-500.0,0.00024657,2]
[329111664,1718112647783,-500.0,0.00024657,2]
[329111666,1718112647793,-510.72,0.00024657,2]
[329111668,1718112647803,-500.0,0.00024657,2]
[329111670,1718112647814,-598.3971156,0.00024657,2]
[329111672,1718112647825,-1051.17,0.00024657,2]
[329111674,1718112647835,-2048.33,0.00024657,2]
[329111676,1718112647845,-500.0,0.00024657,2]
[329111678,1718112647855,-623.59,0.00024657,2]
[329111680,1718112647865,-500.0,0.00024657,2]
[329111682,1718112647875,-484.679186,0.00024657,7]
[329111684,1718112647885,-500.0,0.00024657,2]
[329111686,1718112647896,-732.67,0.00024657,2]
[329111688,1718112647905,-702.04,0.00024657,2]
[329111690,1718112647916,-860.96,0.00024657,2]
[329111692,1718112647926,-484.679186,0.00024657,7]
[329111694,1718112647937,-511.5936377,0.00024657,2]
[329111696,1718112647947,-500.0,0.00024657,2]
[329111698,1718112647960,-500.0,0.00024657,2]
[329111700,1718112647970,-511.99741615,0.00024657,2]
[329111702,1718112647980,-500.0,0.00024657,2]
[329111704,1718112647990,-500.0,0.00024657,2]
[329111706,1718112648001,-500.0,0.00024657,2]
[329111708,1718112648011,-1180.93,0.00024657,2]
[329111710,1718112648022,-151.0,0.00024657,7]
[329111712,1718112648032,-660.12,0.00024657,2]
[329111714,1718112648043,-500.0,0.00024657,2]
[329111716,1718112648053,-151.0,0.00024657,7]
[329111717,1718112648064,-500.0,0.00024657,2]
[329111719,1718112648076,-151.0,0.00024657,7]
[329111721,1718112648090,-500.0,0.00024657,2]
[329111723,1718112648101,-500.0,0.00024657,2]
[329111725,1718112648111,-500.0,0.00024657,2]
[329111727,1718112648121,-500.0,0.00024657,2]
[329111729,1718112648132,-959.55,0.00024657,2]
[329111731,1718112648142,-973.26,0.00024657,2]
[329111733,1718112648153,-500.0,0.00024657,2]
[329111735,1718112648165,-500.0,0.00024657,2]
[329111737,1718112648175,-500.0,0.00024657,2]
[329111739,1718112648185,-500.0,0.00024657,2]
[329111741,1718112648196,-500.0,0.00024657,2]
[329111743,1718112648209,-1624.03,0.00024657,2]
[329111745,1718112648219,-858.16,0.00024657,2]
[329111747,1718112648229,-631.80373196,0.00024657,2]
[329111749,1718112648240,-500.0,0.00024657,2]
[329111751,1718112648251,-500.0,0.00024657,2]
[329111753,1718112648265,-500.0,0.00024657,2]
[329111755,1718112648277,-500.0,0.00024657,2]
[329111757,1718112648287,-500.0,0.00024657,2]
[329111759,1718112648299,-525.14487874,0.00024657,2]
[329111761,1718112648310,-1188.77,0.00024657,2]
[329111763,1718112648320,-171.26066944,0.00024657,2]
[329111765,1718112648330,-511.58700353,0.00024657,2]
[329111767,1718112648342,-500.0,0.00024657,2]
[329111770,1718112648353,-513.32019041,0.00024657,2]
[329111771,1718112648364,-500.0,0.00024657,2]
[329111774,1718112648374,-500.0,0.00024657,2]
[329111776,1718112648384,-500.0,0.00024657,2]
[329111778,1718112648394,-500.0,0.00024657,2]
[329111780,1718112648404,-500.0,0.00024657,2]
[329111781,1718112648415,-500.0,0.00024657,2]
[329111783,1718112648425,-500.0,0.00024657,2]
[329111785,1718112648435,-586.63,0.00024657,2]
[329111787,1718112648446,-500.0,0.00024657,2]
[329111790,1718112648457,-858.32,0.00024657,2]
[329111791,1718112648468,-500.0,0.00024657,2]
[329111793,1718112648479,-1704.07,0.00024657,2]
[329111795,1718112648489,-500.0,0.00024657,2]
[329111797,1718112648499,-500.0,0.00024657,2]
[329111799,1718112648509,-159.711936,0.00024657,2]
[329111802,1718112648519,-500.0,0.00024657,2]
[329111803,1718112648529,-500.0,0.00024657,2]
[329111806,1718112648539,-500.0,0.00024657,2]
[329111807,1718112648549,-500.0,0.00024657,2]
[329111810,1718112648560,-500.0,0.00024657,2]
[329111812,1718112648571,-500.0,0.00024657,2]
[329111813,1718112648586,-500.0,0.00024657,2]
[329111815,1718112648596,-500.0,0.00024657,2]
[329111817,1718112648606,-1247.88,0.00024657,2]
[329111820,1718112648617,-957.79,0.00024657,2]
[329111822,1718112648634,-500.0,0.00024657,2]
[329111823,1718112648646,-500.0,0.00024657,2]
[329111825,1718112648656,-500.0,0.00024657,2]
[329111828,1718112648666,-500.0,0.00024657,2]
[329111829,1718112648676,-2179.56,0.00024657,2]
[329111831,1718112648687,-500.0,0.00024657,2]
[329111833,1718112648696,-500.0,0.00024657,2]
[329111835,1718112648709,-500.0,0.00024657,2]
[329111838,1718112648719,-500.0,0.00024657,2]
[329111840,1718112648730,-500.0,0.00024657,2]
[329111842,1718112648740,-500.0,0.00024657,2]
[329111844,1718112648751,-500.0,0.00024657,2]
[329111846,1718112648762,-1132.29,0.00024657,2]
[329111847,1718112648772,-500.0,0.00024657,2]
[329111850,1718112648783,-500.0,0.00024657,2]
[329111852,1718112648794,-500.0,0.00024657,2]
[329111854,1718112648805,-975.74,0.00024657,2]
[329111856,1718112648815,-500.0,0.00024657,2]
[329111858,1718112648826,-500.0,0.00024657,2]
[329111860,1718112648837,-151.0,0.00024657,7]
[329111862,1718112648848,-500.0,0.00024657,2]
[329111864,1718112648859,-500.0,0.00024657,2]
[329111866,1718112648869,-500.0,0.00024657,2]
[329111868,1718112648880,-1042.3,0.00024657,2]
[329111870,1718112648891,-500.0,0.00024657,2]
[329111872,1718112648901,-1012.36164892,0.00024657,2]
[329111874,1718112648912,-500.0,0.00024657,2]
[329111876,1718112648923,-500.0,0.00024657,2]
[329111878,1718112648934,-500.0,0.00024657,2]
[329111880,1718112648945,-500.0,0.00024657,2]
[329111882,1718112648956,-500.0,0.00024657,2]
[329111884,1718112648971,-500.0,0.00024657,2]
[329111886,1718112648981,-500.0,0.00024657,2]
[329111888,1718112648992,-500.0,0.00024657,2]
[329111890,1718112649003,-151.0,0.00024657,7]
[329111892,1718112649013,-500.0,0.00024657,2]
[329111894,1718112649024,-500.0,0.00024657,2]
[329111896,1718112649035,-500.0,0.00024657,2]
[329111898,1718112649047,-500.0,0.00024657,2]
[329111900,1718112649058,-500.0,0.00024657,2]
[329111902,1718112649068,-500.0,0.00024657,2]
[329111928,1718112649326,-500.0,0.00024657,2]
[329111930,1718112649338,-151.0,0.00024657,7]
[329111932,1718112649555,-777.57,0.00024657,2]
[329111934,1718112649566,-500.0,0.00024657,2]
[329111936,1718112649576,-500.0,0.00024657,2]
[329111938,1718112649587,-500.0,0.00024657,2]
[329111940,1718112649598,-500.0,0.00024657,2]
[329111942,1718112649608,-667.28,0.00024657,2]
[329111944,1718112649624,-500.0,0.00024657,2]
[329111946,1718112649638,-1042.12,0.00024657,2]
[329111948,1718112649648,-500.0,0.00024657,2]
[329111950,1718112649659,-500.0,0.00024657,2]
[329111952,1718112649669,-656.19,0.00024657,2]
[329111953,1718112649679,-500.0,0.00024657,2]
[329111956,1718112649690,-500.0,0.00024657,2]
[329111957,1718112649700,-500.0,0.00024657,2]
[329111960,1718112649710,-1614.04,0.00024657,2]
[329111962,1718112649721,-500.0,0.00024657,2]
[329111963,1718112649731,-528.44,0.00024657,2]
[329111965,1718112649741,-500.0,0.00024657,2]
[329111966,1718112649752,-686.89,0.00024657,2]
[329111967,1718112649763,-500.0,0.00024657,2]
[329111968,1718112649773,-532.53429165,0.00024657,2]
[329111969,1718112649784,-151.0,0.00024657,7]
[329111970,1718112649795,-898.75,0.00024657,2]
[329111971,1718112649805,-500.0,0.00024657,2]
[329111972,1718112649815,-500.0,0.00024657,2]
[329111974,1718112649826,-500.0,0.00024657,2]
[329111976,1718112649836,-500.0,0.00024657,2]
[329111978,1718112649847,-322.0292242,0.00024657,2]
[329111980,1718112649857,-517.62,0.00024657,2]
[329111982,1718112649868,-541.6943733,0.00024657,2]
[329111984,1718112649878,-500.0,0.00024657,2]
[329111986,1718112649888,-500.0,0.00024657,2]
[329111988,1718112649899,-448.17753071,0.00024657,2]
[329111990,1718112649910,-500.0,0.00024657,2]
[329111992,1718112649920,-500.0,0.00024657,2]
[329111994,1718112649931,-500.0,0.00024657,2]
[329111996,1718112649941,-500.0,0.00024657,2]
[329111998,1718112649952,-500.0,0.00024657,2]
[329112000,1718112649964,-500.0,0.00024657,2]
[329112002,1718112649974,-500.0,0.00024657,2]
[329112004,1718112649985,-500.0,0.00024657,2]
[329112006,1718112649995,-1488.16,0.00024657,2]
[329112008,1718112650005,-500.0,0.00024657,2]
[329112011,1718112650016,-546.68826225,0.00024657,2]
[329112013,1718112650026,-829.52,0.00024657,2]
[329112014,1718112650035,-500.0,0.00024657,2]
[329112017,1718112650046,-151.0,0.00024657,7]
[329112019,1718112650057,-151.0,0.00024657,7]
[329112021,1718112650067,-500.0,0.00024657,2]
[329112023,1718112650077,-500.0,0.00024657,2]
[329112025,1718112650088,-151.0,0.00024657,7]
[329112027,1718112650098,-500.0,0.00024657,2]
[329112029,1718112650108,-1070.99,0.00024657,2]
[329112031,1718112650118,-500.0,0.00024657,2]
[329112032,1718112650127,-500.0,0.00024657,2]
[329112034,1718112650138,-151.0,0.00024657,7]
[329112037,1718112650148,-500.0,0.00024657,2]
[329112038,1718112650159,-1127.27,0.00024657,2]
[329112041,1718112650169,-1357.84,0.00024657,2]
[329112043,1718112650179,-500.0,0.00024657,2]
[329112045,1718112650189,-1217.07,0.00024657,2]
[329112047,1718112650200,-746.75,0.00024657,2]
[329112049,1718112650211,-500.0,0.00024657,2]
[329112051,1718112650221,-500.0,0.00024657,2]
[329112053,1718112650231,-500.0,0.00024657,2]
[329112055,1718112650241,-151.0,0.00024657,7]
[329112057,1718112650251,-500.0,0.00024657,2]
[329112059,1718112650264,-2336.14,0.00024657,2]
[329112061,1718112650275,-500.0,0.00024657,2]
[329112063,1718112650286,-500.0,0.00024657,2]
[329112065,1718112650295,-500.0,0.00024657,2]
[329112066,1718112650307,-899.48,0.00024657,2]
[329112068,1718112650317,-500.0,0.00024657,2]
[329112070,1718112650327,-500.0,0.00024657,2]
[329112072,1718112650338,-500.0,0.00024657,2]
[329112074,1718112650349,-500.0,0.00024657,2]
[329112077,1718112650359,-196.421981,0.00024657,7]
[329112078,1718112650370,-500.0,0.00024657,2]
[329112081,1718112650381,-500.0,0.00024657,2]
[329112083,1718112650392,-2103.96,0.00024657,2]
[329112085,1718112650402,-500.0,0.00024657,2]
[329112087,1718112650412,-500.0,0.00024657,2]
[329112089,1718112650422,-500.0,0.00024657,2]
[329112091,1718112650433,-151.0,0.00024657,7]
[329112093,1718112650443,-500.0,0.00024657,2]
[329112095,1718112650454,-150.0,0.00024657,2]
[329112097,1718112650468,-150.0,0.00024657,2]
[329112099,1718112650478,-500.0,0.00024657,2]
[329112101,1718112650488,-196.421981,0.00024657,7]
[329112103,1718112650499,-500.0,0.00024657,2]
[329112105,1718112650509,-170.379507,0.00024657,7]
[329112107,1718112650520,-500.0,0.00024657,2]
[329112109,1718112650530,-500.0,0.00024657,2]
[329112111,1718112650540,-752.62,0.00024657,2]
[329112113,1718112650551,-170.379507,0.00024657,7]
[329112115,1718112650561,-151.0,0.00024657,7]
[329112117,1718112650572,-715.58,0.00024657,2]
[329112119,1718112650582,-507.42,0.00024657,2]
[329112121,1718112650593,-500.0,0.00024657,2]
[329112123,1718112650604,-602.12,0.00024657,2]
[329112125,1718112650614,-500.0,0.00024657,2]
[329112127,1718112650633,-500.0,0.00024657,2]
[329112129,1718112650643,-500.0,0.00024657,2]
[329112131,1718112650654,-500.0,0.00024657,2]
[329112133,1718112650664,-500.0,0.00024657,2]
[329112135,1718112650674,-565.24,0.00024657,2]
[329112137,1718112650685,-500.0,0.00024657,2]
[329112139,1718112650695,-500.0,0.00024657,2]
[329112141,1718112650706,-500.0,0.00024657,2]
[329112143,1718112650719,-500.0,0.00024657,2]
[329112144,1718112650728,-500.0,0.00024657,2]
[329112147,1718112650739,-1368.28,0.00024657,2]
[329112149,1718112650748,-500.0,0.00024657,2]
[329112151,1718112650759,-500.0,0.00024657,2]
[329112153,1718112650769,-500.0,0.00024657,2]
[329112155,1718112650779,-500.0,0.00024657,2]
[329112157,1718112650790,-621.38,0.00024657,2]
[329112159,1718112650800,-500.0,0.00024657,2]
[329112161,1718112650811,-1179.58,0.00024657,2]
[329112162,1718112650823,-151.0,0.00024657,7]
[329112164,1718112650833,-556.54,0.00024657,2]
[329112167,1718112650844,-500.0,0.00024657,2]
[329112168,1718112650855,-500.0,0.00024657,2]
[329112171,1718112650866,-151.0,0.00024657,7]
[329112172,1718112650876,-151.0,0.00024657,7]
[329112175,1718112650888,-151.0,0.00024657,7]
[329112177,1718112650898,-2112.8,0.00024657,2]
[329112179,1718112650908,-500.0,0.00024657,2]
[329112181,1718112650919,-500.0,0.00024657,2]
[329112183,1718112650930,-500.0,0.00024657,2]
[329112185,1718112650941,-151.0,0.00024657,7]
[329112187,1718112650952,-500.0,0.00024657,2]
[329112188,1718112650964,-500.0,0.00024657,2]
[329112191,1718112650974,-872.05,0.00024657,2]
[329112193,1718112650984,-536.74600715,0.00024657,2]
[329112195,1718112650993,-840.44,0.00024657,2]
[329112197,1718112651004,-500.0,0.00024657,2]
[329112199,1718112651015,-617.15,0.00024657,2]
[329112200,1718112651025,-500.0,0.00024657,2]
[329112202,1718112651036,-383.82227906,0.00024657,2]
[329112205,1718112651047,-539.0,0.00024657,2]
[329112206,1718112651058,-500.0,0.00024657,2]
[329112208,1718112651068,-510.80128561,0.00024657,2]
[329112211,1718112651079,-500.0,0.00024657,2]
[329112213,1718112651089,-500.0,0.00024657,2]
[329112214,1718112651099,-500.0,0.00024657,2]
[329112216,1718112651109,-522.90072704,0.00024657,2]
[329112218,1718112651119,-500.0,0.00024657,2]
[329112220,1718112651129,-500.0,0.00024657,2]
[329112222,1718112651139,-500.0,0.00024657,2]
[329112224,1718112651149,-838.31,0.00024657,2]
[329112227,1718112651160,-158.61014881,0.00024657,2]
[329112229,1718112651171,-500.0,0.00024657,2]
[329112231,1718112651183,-500.0,0.00024657,2]
[329112232,1718112651193,-539.06235913,0.00024657,2]
[329112234,1718112651203,-500.0,0.00024657,2]
[329112236,1718112651214,-500.0,0.00024657,2]
[329112238,1718112651225,-524.18158266,0.00024657,2]
[329112240,1718112651235,-500.0,0.00024657,2]
[329112242,1718112651246,-500.0,0.00024657,2]
[329112244,1718112651259,-500.0,0.00024657,2]